[Event "Titled Tuesday Blitz May 03 Early 2022"]
[White "Varshini, V"]
[Black "Vlassov, Nikolai"]
[WhiteFideId "5091241"]
[BlackFideId "4103360"]
[WhiteElo "1948"]
[BlackElo "2407"]
[Result "0-1"]
[Round "08"]
[TimeControl "180+1"]
[Date "2022.05.03"]
[WhiteClock "0:00:02"]
[BlackClock "0:00:24"]

1. e4 {[%clk 0:03:00]}  Nc6 {[%clk 0:02:59]} 2. d4 {[%clk 0:02:59]}  d5 {[%clk 0:02:59]} 3. e5 {[%clk 0:02:59]}  h5 {[%clk 0:02:59]} 4. c3 {[%clk 0:02:58]}  Bg4 {[%clk 0:03:00]} 5. Be2 {[%clk 0:02:57]}  Qd7 {[%clk 0:03:00]} 6. h3 {[%clk 0:02:56]}  Bf5 {[%clk 0:03:00]} 7. Nd2 {[%clk 0:02:54]}  h4 {[%clk 0:02:57]} 8. Ndf3 {[%clk 0:02:52]}  O-O-O {[%clk 0:02:55]} 9. Bd3 {[%clk 0:02:52]}  f6 {[%clk 0:02:54]} 10. Bf4 {[%clk 0:02:32]}  g5 {[%clk 0:02:53]} 11. Bh2 {[%clk 0:02:32]}  g4 {[%clk 0:02:50]} 12. hxg4 {[%clk 0:02:26]}  Bxd3 {[%clk 0:02:46]} 13. Qxd3 {[%clk 0:02:23]}  Qxg4 {[%clk 0:02:46]} 14. Qf1 {[%clk 0:02:13]}  fxe5 {[%clk 0:02:45]} 15. Nxe5 {[%clk 0:02:07]}  Nxe5 {[%clk 0:02:46]} 16. Bxe5 {[%clk 0:02:07]}  Bg7 {[%clk 0:02:42]} 17. Bxg7 {[%clk 0:01:46]}  Qxg7 {[%clk 0:02:41]} 18. Nf3 {[%clk 0:01:46]}  Qg6 {[%clk 0:02:17]} 19. O-O-O {[%clk 0:01:38]}  Nf6 {[%clk 0:02:16]} 20. Ne5 {[%clk 0:01:22]}  Qg7 {[%clk 0:02:00]} 21. f3 {[%clk 0:00:55]}  Rdg8 {[%clk 0:01:58]} 22. Rd2 {[%clk 0:00:54]}  Nd7 {[%clk 0:01:55]} 23. Nxd7 {[%clk 0:00:47]}  Kxd7 {[%clk 0:01:55]} 24. Qb5+ {[%clk 0:00:47]}  Kc8 {[%clk 0:01:54]} 25. Qxd5 {[%clk 0:00:46]}  Qf6 {[%clk 0:01:44]} 26. Qe4 {[%clk 0:00:35]}  Rg3 {[%clk 0:01:38]} 27. Kb1 {[%clk 0:00:18]}  h3 {[%clk 0:01:24]} 28. gxh3 {[%clk 0:00:17]}  Rxf3 {[%clk 0:01:25]} 29. h4 {[%clk 0:00:15]}  Rf4 {[%clk 0:01:22]} 30. Qe3 {[%clk 0:00:10]}  Rfxh4 {[%clk 0:01:17]} 31. Rxh4 {[%clk 0:00:10]}  Rxh4 {[%clk 0:01:17]} 32. a3 {[%clk 0:00:10]}  Rh1+ {[%clk 0:01:14]} 33. Kc2 {[%clk 0:00:10]}  Qf5+ {[%clk 0:01:09]} 34. Qd3 {[%clk 0:00:10]}  Qg4 {[%clk 0:00:58]} 35. Re2 {[%clk 0:00:09]}  e6 {[%clk 0:00:51]} 36. Qe4 {[%clk 0:00:08]}  Qxe4+ {[%clk 0:00:47]} 37. Rxe4 {[%clk 0:00:08]}  Rh2+ {[%clk 0:00:47]} 38. Kb3 {[%clk 0:00:08]}  Kd7 {[%clk 0:00:47]} 39. Re3 {[%clk 0:00:08]}  Kd6 {[%clk 0:00:47]} 40. c4 {[%clk 0:00:08]}  a5 {[%clk 0:00:46]} 41. Kc3 {[%clk 0:00:08]}  a4 {[%clk 0:00:46]} 42. Rd3 {[%clk 0:00:08]}  c5 {[%clk 0:00:41]} 43. d5 {[%clk 0:00:05]}  e5 {[%clk 0:00:40]} 44. Re3 {[%clk 0:00:05]}  Rh4 {[%clk 0:00:38]} 45. Rf3 {[%clk 0:00:05]}  e4 {[%clk 0:00:37]} 46. Rf5 {[%clk 0:00:03]}  Rh3+ {[%clk 0:00:36]} 47. Kc2 {[%clk 0:00:03]}  Rb3 {[%clk 0:00:31]} 48. Kc1 {[%clk 0:00:02]}  b5 {[%clk 0:00:30]} 49. cxb5 {[%clk 0:00:01]}  Rxb5 {[%clk 0:00:30]} 50. Kc2 {[%clk 0:00:02]}  Rb3 {[%clk 0:00:30]} 51. Kc1 {[%clk 0:00:01]}  Rd3 {[%clk 0:00:28]} 52. Kc2 {[%clk 0:00:01]}  Rxd5 {[%clk 0:00:28]} 53. Rf6+ {[%clk 0:00:01]}  Ke5 {[%clk 0:00:27]} 54. Ra6 {[%clk 0:00:01]}  Rd4 {[%clk 0:00:27]} 55. Ra5 {[%clk 0:00:02]}  Kd5 {[%clk 0:00:27]} 56. Ra8 {[%clk 0:00:01]}  e3 {[%clk 0:00:27]} 57. Rd8+ {[%clk 0:00:01]}  Kc4 {[%clk 0:00:26]} 58. Re8 {[%clk 0:00:02]}  Rd2+ {[%clk 0:00:25]} 59. Kc1 {[%clk 0:00:02]}  Kd3 {[%clk 0:00:24]} 60. Rd8+ {[%clk 0:00:02]}  Ke2 {[%clk 0:00:24]} 61. Re8 {[%clk 0:00:03]}  Rd4 {[%clk 0:00:23]} 62. Re5 {[%clk 0:00:02]}  Rc4+ {[%clk 0:00:23]} 63. Kb1 {[%clk 0:00:03]}  Kd2 {[%clk 0:00:23]} 64. Rd5+ {[%clk 0:00:03]}  Ke1 {[%clk 0:00:23]} 65. Re5 {[%clk 0:00:03]}  e2 {[%clk 0:00:24]} 66. Re6 {[%clk 0:00:02]}  Kd2 {[%clk 0:00:24]} 67. Rd6+ {[%clk 0:00:02]}  Rd4 {[%clk 0:00:24]} 0-1


[Site "https://www.chess.com"]

[Event "Titled Tuesday Blitz May 03 Early 2022"]
[White "Vasquez Schroeder, Rodrigo"]
[Black "Samant Aditya S"]
[WhiteFideId "3400042"]
[BlackFideId "35080580"]
[WhiteElo "2561"]
[BlackElo "1916"]
[Result "0-1"]
[Round "08"]
[TimeControl "180+1"]
[Date "2022.05.03"]
[WhiteClock "0:02:40"]
[BlackClock "0:01:07"]

1. e4 {[%clk 0:03:00]}  c5 {[%clk 0:03:00]} 2. Nf3 {[%clk 0:03:00]}  d6 {[%clk 0:03:00]} 3. d4 {[%clk 0:03:01]}  cxd4 {[%clk 0:03:01]} 4. Nxd4 {[%clk 0:03:01]}  Nf6 {[%clk 0:03:02]} 5. Nc3 {[%clk 0:03:01]}  Nc6 {[%clk 0:03:03]} 6. Bg5 {[%clk 0:03:02]}  e6 {[%clk 0:03:03]} 7. Qd2 {[%clk 0:03:02]}  a6 {[%clk 0:03:04]} 8. O-O-O {[%clk 0:03:03]}  h6 {[%clk 0:03:04]} 9. Be3 {[%clk 0:02:58]}  Nxd4 {[%clk 0:03:04]} 10. Bxd4 {[%clk 0:02:58]}  b5 {[%clk 0:03:05]} 11. f3 {[%clk 0:02:58]}  Qa5 {[%clk 0:03:04]} 12. Kb1 {[%clk 0:02:58]}  b4 {[%clk 0:03:03]} 13. Bxf6 {[%clk 0:02:58]}  gxf6 {[%clk 0:03:04]} 14. Ne2 {[%clk 0:02:59]}  Qc5 {[%clk 0:02:48]} 15. Nf4 {[%clk 0:02:57]}  a5 {[%clk 0:02:12]} 16. g4 {[%clk 0:02:56]}  Bd7 {[%clk 0:01:42]} 17. Nh5 {[%clk 0:02:56]}  Be7 {[%clk 0:01:37]} 18. Ng7+ {[%clk 0:02:55]}  Kf8 {[%clk 0:01:34]} 19. Nh5 {[%clk 0:02:55]}  a4 {[%clk 0:01:34]} 20. Rc1 {[%clk 0:02:52]}  a3 {[%clk 0:01:26]} 21. b3 {[%clk 0:02:52]}  Qe5 {[%clk 0:01:06]} 22. c4 {[%clk 0:02:48]}  bxc3 {[%clk 0:01:07]} 23. Qxc3 {[%clk 0:02:40]} 0-1


[Site "https://www.chess.com"]

[Event "Titled Tuesday Blitz May 03 Early 2022"]
[White "Vokhidov, Shamsiddin"]
[Black "Sarana, Alexey"]
[WhiteFideId "14204223"]
[BlackFideId "24133795"]
[WhiteElo "2611"]
[BlackElo "2666"]
[Result "1-0"]
[Round "08"]
[TimeControl "180+1"]
[Date "2022.05.03"]
[WhiteClock "0:00:05"]
[BlackClock "0:00:02"]

1. e4 {[%clk 0:03:00]}  c5 {[%clk 0:03:00]} 2. Nf3 {[%clk 0:03:01]}  d6 {[%clk 0:03:01]} 3. Bb5+ {[%clk 0:03:01]}  Bd7 {[%clk 0:03:01]} 4. Bxd7+ {[%clk 0:03:00]}  Nxd7 {[%clk 0:03:01]} 5. O-O {[%clk 0:02:58]}  e6 {[%clk 0:03:02]} 6. c4 {[%clk 0:02:57]}  Ne5 {[%clk 0:03:01]} 7. Nc3 {[%clk 0:02:49]}  Ne7 {[%clk 0:03:01]} 8. Ne1 {[%clk 0:02:38]}  N7c6 {[%clk 0:02:42]} 9. d3 {[%clk 0:02:38]}  Nd4 {[%clk 0:02:42]} 10. Be3 {[%clk 0:02:34]}  Nec6 {[%clk 0:02:39]} 11. Ne2 {[%clk 0:02:32]}  Nxe2+ {[%clk 0:02:39]} 12. Qxe2 {[%clk 0:02:33]}  Be7 {[%clk 0:02:39]} 13. Nf3 {[%clk 0:02:30]}  O-O {[%clk 0:02:37]} 14. d4 {[%clk 0:02:30]}  cxd4 {[%clk 0:02:37]} 15. Nxd4 {[%clk 0:02:31]}  Bf6 {[%clk 0:02:37]} 16. Rfd1 {[%clk 0:02:30]}  Qe7 {[%clk 0:02:22]} 17. Nxc6 {[%clk 0:02:16]}  bxc6 {[%clk 0:02:23]} 18. Rd2 {[%clk 0:02:17]}  Rfd8 {[%clk 0:02:09]} 19. Rad1 {[%clk 0:02:16]}  Rab8 {[%clk 0:02:09]} 20. b3 {[%clk 0:02:15]}  h6 {[%clk 0:02:06]} 21. Rd3 {[%clk 0:02:14]}  Rd7 {[%clk 0:02:00]} 22. Qd2 {[%clk 0:02:07]}  Rbd8 {[%clk 0:02:00]} 23. f4 {[%clk 0:01:51]}  Qe8 {[%clk 0:01:59]} 24. Qa5 {[%clk 0:01:34]}  d5 {[%clk 0:01:57]} 25. cxd5 {[%clk 0:01:10]}  cxd5 {[%clk 0:01:58]} 26. Qa4 {[%clk 0:01:02]}  Rc7 {[%clk 0:01:16]} 27. Qxe8+ {[%clk 0:01:00]}  Rxe8 {[%clk 0:01:17]} 28. exd5 {[%clk 0:00:59]}  exd5 {[%clk 0:01:18]} 29. Kf2 {[%clk 0:00:52]}  a5 {[%clk 0:00:37]} 30. Rxd5 {[%clk 0:00:49]}  a4 {[%clk 0:00:38]} 31. bxa4 {[%clk 0:00:46]}  Re4 {[%clk 0:00:38]} 32. a5 {[%clk 0:00:43]}  Ra4 {[%clk 0:00:37]} 33. Bb6 {[%clk 0:00:34]}  Rc3 {[%clk 0:00:20]} 34. g3 {[%clk 0:00:19]}  Rxa2+ {[%clk 0:00:20]} 35. R1d2 {[%clk 0:00:20]}  Ra4 {[%clk 0:00:21]} 36. Kg2 {[%clk 0:00:18]}  Kh7 {[%clk 0:00:20]} 37. Kh3 {[%clk 0:00:19]}  Kg6 {[%clk 0:00:20]} 38. Rd7 {[%clk 0:00:16]}  h5 {[%clk 0:00:19]} 39. R2d6 {[%clk 0:00:16]}  Rc2 {[%clk 0:00:17]} 40. Rd2 {[%clk 0:00:14]}  Rc3 {[%clk 0:00:16]} 41. R2d5 {[%clk 0:00:14]}  Rc2 {[%clk 0:00:15]} 42. f5+ {[%clk 0:00:14]}  Kh7 {[%clk 0:00:15]} 43. Rd2 {[%clk 0:00:13]}  Rxd2 {[%clk 0:00:10]} 44. Rxd2 {[%clk 0:00:14]}  g6 {[%clk 0:00:11]} 45. Rd7 {[%clk 0:00:14]}  Kg7 {[%clk 0:00:11]} 46. fxg6 {[%clk 0:00:13]}  Kxg6 {[%clk 0:00:12]} 47. Ra7 {[%clk 0:00:13]}  Rb4 {[%clk 0:00:08]} 48. Bg1 {[%clk 0:00:12]}  Rb1 {[%clk 0:00:08]} 49. Kg2 {[%clk 0:00:12]}  Rb2+ {[%clk 0:00:08]} 50. Kf3 {[%clk 0:00:12]}  Rb3+ {[%clk 0:00:08]} 51. Ke4 {[%clk 0:00:12]}  Rb1 {[%clk 0:00:08]} 52. Bc5 {[%clk 0:00:11]}  Rc1 {[%clk 0:00:06]} 53. Rc7 {[%clk 0:00:11]}  Ra1 {[%clk 0:00:03]} 54. Ra7 {[%clk 0:00:08]}  Ra2 {[%clk 0:00:02]} 55. a6 {[%clk 0:00:08]}  h4 {[%clk 0:00:02]} 56. gxh4 {[%clk 0:00:07]}  Bxh4 {[%clk 0:00:02]} 57. Ra8 {[%clk 0:00:08]}  Kg7 {[%clk 0:00:01]} 58. a7 {[%clk 0:00:08]}  Be7 {[%clk 0:00:02]} 59. Bxe7 {[%clk 0:00:07]}  Re2+ {[%clk 0:00:02]} 60. Kf5 {[%clk 0:00:06]}  Rxe7 {[%clk 0:00:03]} 61. Rg8+ {[%clk 0:00:05]}  Kxg8 {[%clk 0:00:04]} 62. a8=Q+ {[%clk 0:00:06]}  Kg7 {[%clk 0:00:04]} 63. Qg2+ {[%clk 0:00:06]}  Kf8 {[%clk 0:00:04]} 64. Qa8+ {[%clk 0:00:05]}  Kg7 {[%clk 0:00:04]} 65. Qa1+ {[%clk 0:00:06]}  Kg8 {[%clk 0:00:04]} 66. Qg1+ {[%clk 0:00:04]}  Kf8 {[%clk 0:00:04]} 67. Qc5 {[%clk 0:00:05]}  Ke8 {[%clk 0:00:02]} 68. Qc8# {[%clk 0:00:05]} 1-0


[Site "https://www.chess.com"]

[Event "Titled Tuesday Blitz May 03 Early 2022"]
[White "Vovk, Orest"]
[Black "Tasev, Dejan"]
[WhiteFideId "14113490"]
[BlackFideId "936618"]
[WhiteElo "2203"]
[BlackElo "2253"]
[Result "0-1"]
[Round "08"]
[TimeControl "180+1"]
[Date "2022.05.03"]
[WhiteClock "0:00:15"]
[BlackClock "0:00:17"]

1. h4 {[%clk 0:02:50]}  Nf6 {[%clk 0:02:58]} 2. h5 {[%clk 0:02:50]}  h6 {[%clk 0:02:56]} 3. Nc3 {[%clk 0:02:49]}  d5 {[%clk 0:02:56]} 4. e4 {[%clk 0:02:49]}  dxe4 {[%clk 0:02:54]} 5. Qe2 {[%clk 0:02:49]}  e6 {[%clk 0:02:51]} 6. Nxe4 {[%clk 0:02:48]}  Nbd7 {[%clk 0:02:51]} 7. Nf3 {[%clk 0:02:47]}  Be7 {[%clk 0:02:48]} 8. b3 {[%clk 0:02:47]}  Nxe4 {[%clk 0:02:46]} 9. Qxe4 {[%clk 0:02:47]}  Nf6 {[%clk 0:02:46]} 10. Qd3 {[%clk 0:02:45]}  Qxd3 {[%clk 0:02:44]} 11. Bxd3 {[%clk 0:02:46]}  O-O {[%clk 0:02:44]} 12. Bb2 {[%clk 0:02:46]}  a5 {[%clk 0:02:40]} 13. a4 {[%clk 0:02:44]}  b6 {[%clk 0:02:37]} 14. Ne5 {[%clk 0:02:44]}  Bb7 {[%clk 0:02:37]} 15. f3 {[%clk 0:02:44]}  Nd5 {[%clk 0:02:29]} 16. Be4 {[%clk 0:02:34]}  f5 {[%clk 0:02:09]} 17. Bxd5 {[%clk 0:02:31]}  Bxd5 {[%clk 0:02:01]} 18. Ng6 {[%clk 0:02:31]}  Rfe8 {[%clk 0:01:57]} 19. Nxe7+ {[%clk 0:02:31]}  Rxe7 {[%clk 0:01:55]} 20. Be5 {[%clk 0:02:32]}  Kh7 {[%clk 0:01:51]} 21. c4 {[%clk 0:02:28]}  Bb7 {[%clk 0:01:50]} 22. d4 {[%clk 0:02:28]}  Rd8 {[%clk 0:01:42]} 23. Ke2 {[%clk 0:02:28]}  c6 {[%clk 0:01:30]} 24. Rh4 {[%clk 0:02:22]}  Ba6 {[%clk 0:01:22]} 25. g4 {[%clk 0:02:18]}  Bc8 {[%clk 0:01:16]} 26. Rg1 {[%clk 0:02:15]}  c5 {[%clk 0:01:06]} 27. g5 {[%clk 0:02:14]}  hxg5 {[%clk 0:01:03]} 28. Rxg5 {[%clk 0:02:13]}  cxd4 {[%clk 0:00:57]} 29. Rxd4 {[%clk 0:02:05]}  Rdd7 {[%clk 0:00:45]} 30. Rg6 {[%clk 0:01:51]}  Rxd4 {[%clk 0:00:39]} 31. Bxd4 {[%clk 0:01:50]}  e5 {[%clk 0:00:39]} 32. Bxb6 {[%clk 0:01:47]}  f4 {[%clk 0:00:39]} 33. Bxa5 {[%clk 0:01:44]}  e4 {[%clk 0:00:39]} 34. fxe4 {[%clk 0:01:29]}  Bf5 {[%clk 0:00:39]} 35. Rg5 {[%clk 0:01:21]}  Bxe4 {[%clk 0:00:38]} 36. Kf2 {[%clk 0:01:07]}  Bc2 {[%clk 0:00:31]} 37. Rb5 {[%clk 0:00:58]}  Be4 {[%clk 0:00:27]} 38. Bd2 {[%clk 0:00:54]}  f3 {[%clk 0:00:26]} 39. Be3 {[%clk 0:00:53]}  Rd7 {[%clk 0:00:25]} 40. Re5 {[%clk 0:00:47]}  Bb7 {[%clk 0:00:24]} 41. c5 {[%clk 0:00:42]}  Rd3 {[%clk 0:00:23]} 42. b4 {[%clk 0:00:38]}  Rb3 {[%clk 0:00:23]} 43. b5 {[%clk 0:00:37]}  Rb2+ {[%clk 0:00:23]} 44. Kg3 {[%clk 0:00:36]}  Rg2+ {[%clk 0:00:23]} 45. Kh3 {[%clk 0:00:30]}  Bc8+ {[%clk 0:00:22]} 46. Kh4 {[%clk 0:00:30]}  f2 {[%clk 0:00:23]} 47. Bxf2 {[%clk 0:00:30]}  Rxf2 {[%clk 0:00:23]} 48. c6 {[%clk 0:00:29]}  Kh6 {[%clk 0:00:20]} 49. b6 {[%clk 0:00:26]}  Rf3 {[%clk 0:00:19]} 50. Re3 {[%clk 0:00:16]}  Rxe3 {[%clk 0:00:19]} 51. b7 {[%clk 0:00:15]}  Rh3# {[%clk 0:00:17]} 0-1


[Site "https://www.chess.com"]

[Event "Titled Tuesday Blitz May 03 Early 2022"]
[White "Weishaeutel, Moritz"]
[Black "Gottstein, Claudius-Thomas"]
[WhiteFideId "12967300"]
[BlackFideId "4653327"]
[WhiteElo "2002"]
[BlackElo "2109"]
[Result "1/2-1/2"]
[Round "08"]
[TimeControl "180+1"]
[Date "2022.05.03"]
[WhiteClock "0:00:28"]
[BlackClock "0:00:06"]

1. e4 {[%clk 0:02:56]}  c6 {[%clk 0:02:59]} 2. d3 {[%clk 0:02:47]}  d5 {[%clk 0:03:00]} 3. Nd2 {[%clk 0:02:48]}  e5 {[%clk 0:03:00]} 4. Ngf3 {[%clk 0:02:46]}  Bd6 {[%clk 0:02:59]} 5. d4 {[%clk 0:02:47]}  exd4 {[%clk 0:02:55]} 6. exd5 {[%clk 0:02:47]}  cxd5 {[%clk 0:02:51]} 7. Nxd4 {[%clk 0:02:46]}  Nc6 {[%clk 0:02:51]} 8. N2f3 {[%clk 0:02:45]}  Nge7 {[%clk 0:02:48]} 9. Bd3 {[%clk 0:02:43]}  Bg4 {[%clk 0:02:44]} 10. h3 {[%clk 0:02:40]}  Bh5 {[%clk 0:02:36]} 11. Be2 {[%clk 0:02:40]}  O-O {[%clk 0:02:32]} 12. O-O {[%clk 0:02:39]}  a6 {[%clk 0:02:29]} 13. c3 {[%clk 0:02:39]}  Qc7 {[%clk 0:02:23]} 14. Be3 {[%clk 0:02:36]}  Rfe8 {[%clk 0:02:21]} 15. Qd2 {[%clk 0:02:23]}  Bg6 {[%clk 0:02:18]} 16. Rfe1 {[%clk 0:02:18]}  Nf5 {[%clk 0:02:17]} 17. Nxf5 {[%clk 0:02:16]}  Bxf5 {[%clk 0:02:17]} 18. Qxd5 {[%clk 0:02:15]}  Be4 {[%clk 0:02:13]} 19. Qd1 {[%clk 0:02:05]}  Rad8 {[%clk 0:02:12]} 20. Nd2 {[%clk 0:02:02]}  Bh2+ {[%clk 0:02:05]} 21. Kh1 {[%clk 0:02:02]}  Bf4 {[%clk 0:02:02]} 22. Bf3 {[%clk 0:01:47]}  Bxf3 {[%clk 0:01:50]} 23. Qxf3 {[%clk 0:01:48]}  Bxe3 {[%clk 0:01:49]} 24. Rxe3 {[%clk 0:01:49]}  Ne5 {[%clk 0:01:26]} 25. Qe2 {[%clk 0:01:48]}  Qd7 {[%clk 0:01:20]} 26. Rxe5 {[%clk 0:01:35]}  Rxe5 {[%clk 0:01:15]} 27. Qxe5 {[%clk 0:01:36]}  Qxd2 {[%clk 0:01:15]} 28. Re1 {[%clk 0:01:37]}  h6 {[%clk 0:01:08]} 29. Qe2 {[%clk 0:01:36]}  Qd5 {[%clk 0:01:02]} 30. c4 {[%clk 0:01:34]}  Qd4 {[%clk 0:00:58]} 31. b3 {[%clk 0:01:33]}  a5 {[%clk 0:00:57]} 32. Qe4 {[%clk 0:01:23]}  Qxf2 {[%clk 0:00:53]} 33. Re2 {[%clk 0:01:20]}  Qf1+ {[%clk 0:00:34]} 34. Kh2 {[%clk 0:01:21]}  Qf6 {[%clk 0:00:34]} 35. Qxb7 {[%clk 0:01:17]}  Qf4+ {[%clk 0:00:33]} 36. g3 {[%clk 0:01:18]}  Qf1 {[%clk 0:00:28]} 37. Qg2 {[%clk 0:01:17]}  Qf5 {[%clk 0:00:20]} 38. Qf2 {[%clk 0:01:15]}  Qb1 {[%clk 0:00:18]} 39. c5 {[%clk 0:01:05]}  Rd1 {[%clk 0:00:17]} 40. c6 {[%clk 0:01:04]}  Rh1+ {[%clk 0:00:16]} 41. Kg2 {[%clk 0:01:04]}  Rc1 {[%clk 0:00:11]} 42. Qb6 {[%clk 0:00:50]}  Qf5 {[%clk 0:00:07]} 43. Qb8+ {[%clk 0:00:25]}  Kh7 {[%clk 0:00:06]} 44. Qf4 {[%clk 0:00:25]}  Qd5+ {[%clk 0:00:06]} 45. Qf3 {[%clk 0:00:25]}  Rg1+ {[%clk 0:00:05]} 46. Kxg1 {[%clk 0:00:20]}  Qxf3 {[%clk 0:00:06]} 47. c7 {[%clk 0:00:21]}  Qxg3+ {[%clk 0:00:05]} 48. Rg2 {[%clk 0:00:21]}  Qxc7 {[%clk 0:00:06]} 49. Rf2 {[%clk 0:00:19]}  Qc1+ {[%clk 0:00:07]} 50. Kg2 {[%clk 0:00:20]}  Qc5 {[%clk 0:00:07]} 51. Rf3 {[%clk 0:00:20]}  Qb4 {[%clk 0:00:07]} 52. Rf4 {[%clk 0:00:19]}  Qa3 {[%clk 0:00:08]} 53. Rf2 {[%clk 0:00:19]}  Qb4 {[%clk 0:00:08]} 54. Kg3 {[%clk 0:00:19]}  a4 {[%clk 0:00:08]} 55. bxa4 {[%clk 0:00:20]}  Qxa4 {[%clk 0:00:09]} 56. Rg2 {[%clk 0:00:20]}  Qb4 {[%clk 0:00:09]} 57. Kh2 {[%clk 0:00:21]}  Qc4 {[%clk 0:00:09]} 58. Rf2 {[%clk 0:00:22]}  Qd4 {[%clk 0:00:08]} 59. Rg2 {[%clk 0:00:22]}  Qf4+ {[%clk 0:00:08]} 60. Kh1 {[%clk 0:00:23]}  f5 {[%clk 0:00:08]} 61. Rg1 {[%clk 0:00:23]}  Qf3+ {[%clk 0:00:08]} 62. Kh2 {[%clk 0:00:23]}  f4 {[%clk 0:00:09]} 63. Rg2 {[%clk 0:00:24]}  Qe4 {[%clk 0:00:08]} 64. Rf2 {[%clk 0:00:24]}  f3 {[%clk 0:00:09]} 65. Kg3 {[%clk 0:00:25]}  Qe5+ {[%clk 0:00:06]} 66. Kxf3 {[%clk 0:00:25]}  Qf6+ {[%clk 0:00:06]} 67. Kg2 {[%clk 0:00:25]}  Qg5+ {[%clk 0:00:06]} 68. Kh2 {[%clk 0:00:26]}  Qe5+ {[%clk 0:00:05]} 69. Kg2 {[%clk 0:00:26]}  Qe4+ {[%clk 0:00:05]} 70. Kh2 {[%clk 0:00:26]}  Qe5+ {[%clk 0:00:06]} 71. Kg2 {[%clk 0:00:27]}  Qe4+ {[%clk 0:00:05]} 72. Kh2 {[%clk 0:00:28]}  Qe5+ {[%clk 0:00:06]} 1/2-1/2


[Site "https://www.chess.com"]

[Event "Titled Tuesday Blitz May 03 Early 2022"]
[White "Winkels, Marcel"]
[Black "Murthy, Pappu"]
[WhiteFideId "1003887"]
[BlackFideId "2013401"]
[WhiteElo "1900"]
[BlackElo "2039"]
[Result "0-1"]
[Round "08"]
[TimeControl "180+1"]
[Date "2022.05.03"]
[WhiteClock "0:00:12"]
[BlackClock "0:00:10"]

1. d4 {[%clk 0:03:00]}  Nf6 {[%clk 0:02:59]} 2. Nc3 {[%clk 0:03:01]}  d5 {[%clk 0:02:57]} 3. Bf4 {[%clk 0:03:01]}  c5 {[%clk 0:02:51]} 4. dxc5 {[%clk 0:02:56]}  e6 {[%clk 0:02:35]} 5. e3 {[%clk 0:02:56]}  Bxc5 {[%clk 0:02:33]} 6. Nf3 {[%clk 0:02:52]}  O-O {[%clk 0:02:33]} 7. Be2 {[%clk 0:02:49]}  a6 {[%clk 0:02:32]} 8. h3 {[%clk 0:02:49]}  b5 {[%clk 0:02:32]} 9. O-O {[%clk 0:02:46]}  Bb7 {[%clk 0:02:32]} 10. Ne5 {[%clk 0:02:31]}  Nbd7 {[%clk 0:02:27]} 11. Nxd7 {[%clk 0:02:30]}  Qxd7 {[%clk 0:02:27]} 12. Bf3 {[%clk 0:02:28]}  Rac8 {[%clk 0:02:27]} 13. Qe2 {[%clk 0:02:27]}  h6 {[%clk 0:02:26]} 14. Rfd1 {[%clk 0:02:19]}  Qe7 {[%clk 0:02:20]} 15. a3 {[%clk 0:02:18]}  Rfd8 {[%clk 0:02:18]} 16. Be5 {[%clk 0:02:09]}  Nd7 {[%clk 0:02:13]} 17. Bd4 {[%clk 0:02:06]}  Nb6 {[%clk 0:02:09]} 18. Bxc5 {[%clk 0:02:05]}  Qxc5 {[%clk 0:02:07]} 19. Qe1 {[%clk 0:01:38]}  Nc4 {[%clk 0:01:59]} 20. b4 {[%clk 0:01:33]}  Qe7 {[%clk 0:01:50]} 21. Rd3 {[%clk 0:01:22]}  Qf6 {[%clk 0:01:46]} 22. Ra2 {[%clk 0:01:08]}  Ne5 {[%clk 0:01:43]} 23. Rd4 {[%clk 0:00:55]}  Nxf3+ {[%clk 0:01:40]} 24. gxf3 {[%clk 0:00:55]}  Qxf3 {[%clk 0:01:39]} 25. Kh2 {[%clk 0:00:49]}  e5 {[%clk 0:01:26]} 26. Rg4 {[%clk 0:00:48]}  d4 {[%clk 0:01:09]} 27. exd4 {[%clk 0:00:45]}  Rxc3 {[%clk 0:01:08]} 28. Rg3 {[%clk 0:00:39]}  Qd5 {[%clk 0:00:42]} 29. Ra1 {[%clk 0:00:31]}  Rxc2 {[%clk 0:00:38]} 30. Qg1 {[%clk 0:00:26]}  Kf8 {[%clk 0:00:19]} 31. Rxg7 {[%clk 0:00:24]}  Rxf2+ {[%clk 0:00:19]} 32. Qxf2 {[%clk 0:00:21]}  Kxg7 {[%clk 0:00:18]} 33. Rg1+ {[%clk 0:00:19]}  Kf8 {[%clk 0:00:18]} 34. Qf6 {[%clk 0:00:19]}  Rd7 {[%clk 0:00:14]} 35. Qh8+ {[%clk 0:00:18]}  Ke7 {[%clk 0:00:14]} 36. Qxh6 {[%clk 0:00:18]}  Qa2+ {[%clk 0:00:13]} 37. Kg3 {[%clk 0:00:17]}  Qb3+ {[%clk 0:00:13]} 38. Kh2 {[%clk 0:00:16]}  Qc2+ {[%clk 0:00:12]} 39. Kg3 {[%clk 0:00:16]}  Qd3+ {[%clk 0:00:12]} 40. Kh2 {[%clk 0:00:15]}  Qe2+ {[%clk 0:00:12]} 41. Kg3 {[%clk 0:00:14]}  Qf3+ {[%clk 0:00:13]} 42. Kh2 {[%clk 0:00:14]}  Rxd4 {[%clk 0:00:13]} 43. Qg5+ {[%clk 0:00:13]}  Kd7 {[%clk 0:00:12]} 44. Qxe5 {[%clk 0:00:12]}  Rd2+ {[%clk 0:00:10]} 0-1


[Site "https://www.chess.com"]

[Event "Titled Tuesday Blitz May 03 Early 2022"]
[White "Zia, Tahsin Tajwar"]
[Black "Simonovic, Miroslav"]
[WhiteFideId "10211888"]
[BlackFideId "919152"]
[WhiteElo "1800"]
[BlackElo "2043"]
[Result "0-1"]
[Round "08"]
[TimeControl "180+1"]
[Date "2022.05.03"]
[WhiteClock "0:00:02"]
[BlackClock "0:00:05"]

1. d4 {[%clk 0:03:00]}  Nf6 {[%clk 0:02:59]} 2. c4 {[%clk 0:03:00]}  c5 {[%clk 0:02:59]} 3. d5 {[%clk 0:03:00]}  b5 {[%clk 0:03:00]} 4. cxb5 {[%clk 0:03:01]}  a6 {[%clk 0:03:01]} 5. bxa6 {[%clk 0:03:02]}  Bxa6 {[%clk 0:03:01]} 6. Nc3 {[%clk 0:03:02]}  d6 {[%clk 0:03:02]} 7. g3 {[%clk 0:03:02]}  Nbd7 {[%clk 0:03:02]} 8. Bg2 {[%clk 0:03:02]}  g6 {[%clk 0:03:03]} 9. Nf3 {[%clk 0:03:01]}  Bg7 {[%clk 0:03:03]} 10. O-O {[%clk 0:03:01]}  O-O {[%clk 0:03:03]} 11. Rb1 {[%clk 0:02:56]}  Ra7 {[%clk 0:03:04]} 12. Qc2 {[%clk 0:02:46]}  Qa8 {[%clk 0:02:57]} 13. b3 {[%clk 0:02:38]}  Nxd5 {[%clk 0:02:22]} 14. Nxd5 {[%clk 0:02:25]}  Qxd5 {[%clk 0:02:23]} 15. Rd1 {[%clk 0:02:15]}  Qe6 {[%clk 0:02:05]} 16. e4 {[%clk 0:02:09]}  Bb7 {[%clk 0:01:39]} 17. Nd2 {[%clk 0:01:58]}  Rfa8 {[%clk 0:01:33]} 18. a4 {[%clk 0:01:45]}  f5 {[%clk 0:01:10]} 19. Re1 {[%clk 0:01:27]}  Qf7 {[%clk 0:01:04]} 20. Nc4 {[%clk 0:01:13]}  Bd4 {[%clk 0:00:40]} 21. exf5 {[%clk 0:00:55]}  gxf5 {[%clk 0:00:37]} 22. Bg5 {[%clk 0:00:49]}  Bf6 {[%clk 0:00:28]} 23. Qd2 {[%clk 0:00:33]}  Bxg2 {[%clk 0:00:27]} 24. Kxg2 {[%clk 0:00:27]}  Rf8 {[%clk 0:00:24]} 25. h4 {[%clk 0:00:21]}  d5 {[%clk 0:00:16]} 26. Ne3 {[%clk 0:00:14]}  e6 {[%clk 0:00:16]} 27. f4 {[%clk 0:00:11]}  Qg7 {[%clk 0:00:15]} 28. Nf1 {[%clk 0:00:07]}  Bc3 {[%clk 0:00:14]} 29. Qe2 {[%clk 0:00:07]}  Bxe1 {[%clk 0:00:14]} 30. Qxe6+ {[%clk 0:00:07]}  Qf7 {[%clk 0:00:13]} 31. Rxe1 {[%clk 0:00:08]}  Qxe6 {[%clk 0:00:13]} 32. Rxe6 {[%clk 0:00:09]}  Kf7 {[%clk 0:00:10]} 33. Re7+ {[%clk 0:00:09]}  Kg8 {[%clk 0:00:10]} 34. Ne3 {[%clk 0:00:09]}  d4 {[%clk 0:00:09]} 35. Nd5 {[%clk 0:00:08]}  Rf7 {[%clk 0:00:10]} 36. Re8+ {[%clk 0:00:09]}  Kg7 {[%clk 0:00:10]} 37. h5 {[%clk 0:00:08]}  h6 {[%clk 0:00:09]} 38. Be7 {[%clk 0:00:09]}  Rb7 {[%clk 0:00:07]} 39. Bd6 {[%clk 0:00:04]}  Rxb3 {[%clk 0:00:05]} 40. a5 {[%clk 0:00:04]}  d3 {[%clk 0:00:05]} 41. a6 {[%clk 0:00:03]}  d2 {[%clk 0:00:05]} 42. a7 {[%clk 0:00:03]}  d1=Q {[%clk 0:00:05]} 43. a8=Q {[%clk 0:00:03]}  Qf3+ {[%clk 0:00:05]} 44. Kh2 {[%clk 0:00:01]}  Qxg3+ {[%clk 0:00:05]} 45. Kh1 {[%clk 0:00:02]}  Rb1+ {[%clk 0:00:05]} 46. Re1 {[%clk 0:00:02]}  Rxe1# {[%clk 0:00:05]} 0-1


[Site "https://www.chess.com"]